bitfinex/quotes_SOLUSD_20251118
["timestamp","ask_amount","ask_price","bid_price","bid_amount"]
[1763465153571,13.54149251,138.4,138.36,0.71]
[1763465154459,13.54149251,138.39,138.36,0.71]
[1763465154677,13.54149251,138.39,138.34,12.86149251]
[1763465154850,12.86149251,138.4,138.35,13.57149251]
[1763465155056,4.3,138.41,138.37,12.86149251]
[1763465155250,14.08882769,138.42,138.38,13.57149251]
[1763465155777,14.76882769,138.42,138.38,12.86149251]
[1763465155963,14.76882769,138.42,138.38,13.57149251]
[1763465156365,14.76882769,138.42,138.39,0.71]
[1763465156679,4.3,138.42,138.39,13.57149251]
[1763465156889,4.98,138.42,138.39,0.71]
[1763465157570,4.3,138.42,138.39,0.71]
[1763465158084,4.3,138.42,138.39,13.57149251]
[1763465158604,22.42096,138.44,138.4,0.71]
[1763465158780,23.10096,138.44,138.4,0.71]
[1763465158953,27.94158211,138.44,138.4,0.71]
[1763465159656,0.68,138.43,138.39,4.84062211]
[1763465159853,0.68,138.43,138.39,5.55062211]
[1763465160280,27.26158211,138.44,138.39,4.84062211]
[1763465160469,0.68,138.43,138.4,0.71]
[1763465160880,4.3,138.44,138.4,5.55062211]
[1763465161176,4.3,138.44,138.41,4.84062211]
[1763465161394,0.68,138.45,138.41,5.55062211]
[1763465161578,9.14062211,138.46,138.42,0.71]
[1763465161786,9.82062211,138.46,138.42,0.71]
[1763465162088,0.68,138.45,138.42,0.71]
[1763465162387,9.14062211,138.46,138.42,0.71]
[1763465162886,9.82062211,138.46,138.42,0.71]
[1763465164067,4.3,138.46,138.42,5.55062211]
[1763465164266,4.3,138.46,138.43,4.84062211]
[1763465164574,4.3,138.46,138.43,5.55062211]
[1763465164777,5.52062211,138.49,138.44,5.55062211]
[1763465165092,9.82062211,138.49,138.44,5.55062211]
[1763465165418,9.82062211,138.49,138.45,0.71]
[1763465165697,4.3,138.49,138.45,5.55062211]
[1763465165879,0.68,138.48,138.44,5.55062211]
[1763465166395,5.52062211,138.48,138.44,0.71]
[1763465166707,4.84062211,138.46,138.42,0.71]
[1763465166872,4.84062211,138.44,138.39,5.55062211]
[1763465167066,4.84062211,138.43,138.39,0.71]
[1763465167466,5.52062211,138.43,138.39,0.71]
[1763465167705,4.98,138.45,138.39,5.55062211]
[1763465167872,4.84062211,138.44,138.39,5.55062211]
[1763465168266,5.52062211,138.44,138.4,0.71]
[1763465168485,5.52062211,138.44,138.4,5.55062211]
[1763465169208,0.68,138.43,138.4,0.71]
[1763465170400,4.84062211,138.44,138.4,0.71]
[1763465170706,5.52062211,138.44,138.4,0.71]
[1763465171401,0.68,138.43,138.4,0.71]
[1763465173475,0.68,138.43,138.36,18.12096]
[1763465173681,4.84062211,138.42,138.37,5.56062211]
[1763465173989,4.84062211,138.41,138.36,4.84062211]
[1763465174299,10.46882769,138.43,138.29,21.1857971]
[1763465174300,4.84062211,138.39,138.34,5.56062211]
[1763465174599,4.84062211,138.37,138.32,4.84062211]
[1763465174804,4.84062211,138.37,138.32,13.57700571]
[1763465174805,0.69,138.36,138.32,13.57700571]
[1763465175677,12.85700571,138.38,138.33,13.57700571]
[1763465175878,9.78882769,138.38,138.35,12.85700571]
[1763465176194,9.78882769,138.38,138.35,0.72]
[1763465176195,10.47882769,138.38,138.35,0.72]
[1763465176388,9.78882769,138.39,138.35,12.85700571]
[1763465176702,23.3358334,138.39,138.35,0.72]
[1763465177008,22.6458334,138.39,138.35,0.72]
[1763465177296,0.69,138.38,138.35,0.72]
[1763465177499,0.69,138.38,138.34,12.85700571]
[1763465177805,13.54700571,138.38,138.33,13.57700571]
[1763465178203,0.69,138.37,138.33,12.85700571]
[1763465178389,9.78882769,138.38,138.34,13.57700571]
[1763465178583,17.15700571,138.4,138.35,12.85700571]
[1763465178783,17.15700571,138.4,138.36,0.72]
[1763465179082,13.54700571,138.39,138.34,13.57700571]
[1763465179587,0.69,138.38,138.35,0.72]
[1763465179791,13.54700571,138.39,138.35,0.72]
[1763465179991,4.3,138.4,138.36,12.85700571]
[1763465180192,13.51700571,138.42,138.37,12.85700571]
[1763465180383,17.81700571,138.42,138.37,12.85700571]
[1763465180577,12.85700571,138.4,138.35,17.81700571]
[1763465181116,0.66,138.39,138.35,13.51700571]
[1763465181302,13.51700571,138.39,138.35,0.66]
[1763465181806,0.66,138.39,138.35,13.51700571]
[1763465182002,23.08096,138.42,138.37,12.85700571]
[1763465182192,12.85700571,138.41,138.37,12.85700571]
[1763465182391,13.51700571,138.41,138.37,13.51700571]
[1763465182586,13.51700571,138.41,138.37,0.66]
[1763465182810,13.51700571,138.41,138.38,0.66]
[1763465183302,13.51700571,138.41,138.36,13.51700571]
[1763465183494,13.51700571,138.41,138.37,0.66]
[1763465185314,0.66,138.4,138.35,12.85700571]
[1763465185498,13.51700571,138.4,138.35,13.51700571]
[1763465185682,13.51700571,138.4,138.36,0.66]
[1763465186010,12.85700571,138.39,138.34,4.3]
[1763465186187,12.85700571,138.38,138.34,0.66]
[1763465186390,13.51700571,138.38,138.35,0.66]
[1763465186598,0.66,138.38,138.35,0.66]
[1763465188804,0.66,138.38,138.34,12.85700571]
[1763465189006,0.66,138.38,138.35,0.66]
[1763465190212,0.66,138.38,138.34,12.85700571]
[1763465190401,13.51700571,138.38,138.34,0.66]
[1763465190889,0.66,138.38,138.34,13.51700571]
[1763465191800,0.66,138.38,138.34,12.85700571]
[1763465191991,0.66,138.38,138.34,13.51700571]
[1763465193200,0.66,138.38,138.34,12.85700571]
[1763465193396,0.66,138.38,138.35,13.51700571]
[1763465193719,18.12096,138.42,138.37,12.85700571]
[1763465193924,35.93796571,138.42,138.37,13.51700571]
[1763465194116,0.66,138.41,138.37,13.51700571]
[1763465194295,0.66,138.41,138.37,0.66]
[1763465195215,0.66,138.41,138.37,5.5026985]
[1763465195727,0.66,138.41,138.37,0.66]
[1763465195728,10.82012391,138.41,138.37,0.66]
[1763465195927,0.66,138.41,138.37,5.5026985]
[1763465196151,5.97718339,138.41,138.37,5.5026985]
[1763465196626,0.66,138.4,138.37,0.66]
[1763465199109,27.2636585,138.42,138.37,0.66]
[1763465199293,0.66,138.41,138.37,0.66]
[1763465199922,10.82405094,138.41,138.37,0.66]
[1763465200124,5.5026985,138.41,138.37,0.66]
[1763465200716,0.66,138.4,138.37,0.66]
[1763465201430,0.66,138.4,138.29,17.94787512]
[1763465201431,4.8426985,138.39,138.34,5.5026985]
[1763465201636,4.8426985,138.38,138.34,0.66]
[1763465201849,5.5026985,138.38,138.34,0.66]
[1763465202149,0.66,138.38,138.34,5.5026985]
[1763465202553,0.66,138.38,138.35,0.69]
[1763465203349,0.66,138.38,138.35,5.5326985]
[1763465203545,0.66,138.38,138.35,4.8426985]
[1763465203851,5.5026985,138.38,138.33,9.8326985]
[1763465204151,5.5026985,138.38,138.34,0.69]
[1763465204355,0.71,138.37,138.34,0.69]
[1763465204526,4.8426985,138.38,138.34,0.69]
[1763465204725,9.1426985,138.39,138.34,5.5326985]
[1763465204950,0.71,138.38,138.34,5.5326985]
[1763465205155,0.71,138.38,138.35,0.69]
[1763465205951,9.1426985,138.39,138.35,0.69]
[1763465206169,5.01,138.39,138.35,5.5326985]
[1763465206752,0.71,138.38,138.35,5.5326985]
[1763465207338,0.71,138.38,138.35,0.69]
[1763465208259,0.71,138.38,138.33,9.8326985]
[1763465208453,0.71,138.38,138.34,0.69]
[1763465209440,0.71,138.38,138.32,27.9536585]
[1763465209441,4.8426985,138.37,138.32,27.9536585]
[1763465209852,0.71,138.36,138.33,0.69]
[1763465210060,0.71,138.36,138.33,5.5326985]
[1763465210352,0.71,138.36,138.32,18.81096]
[1763465211170,0.71,138.36,138.29,0.69]
[1763465211171,3.10159716,138.33,138.29,0.69]
[1763465211742,0.71,138.32,138.29,0.69]
[1763465212057,0.71,138.32,138.29,3.79159716]
[1763465212245,3.81159716,138.34,138.29,3.79159716]
[1763465212433,0.71,138.33,138.3,0.69]
[1763465212833,4.3,138.35,138.31,3.10159716]
[1763465213044,0.71,138.37,138.34,3.10159716]
[1763465213240,12.89042485,138.39,138.34,3.10159716]
[1763465213241,5.32244722,138.38,138.34,3.10159716]
[1763465213456,6.03244722,138.38,138.34,3.79159716]
[1763465213729,0.71,138.37,138.34,3.10159716]
[1763465214533,3.81159716,138.37,138.33,23.11096]
[1763465214734,3.81159716,138.37,138.33,4.99]
[1763465215144,0.71,138.36,138.33,4.99]
[1763465218266,3.81159716,138.38,138.34,0.69]
[1763465218562,0.71,138.39,138.35,3.10159716]
[1763465219076,0.71,138.39,138.36,0.69]
[1763465220076,18.12096,138.41,138.37,3.10159716]
[1763465220077,0.71,138.41,138.37,3.10159716]
[1763465220363,0.71,138.42,138.38,3.10159716]
[1763465220534,4.3,138.43,138.39,3.79159716]
[1763465220741,0.71,138.44,138.4,3.10159716]
[1763465220950,0.71,138.43,138.4,0.69]
[1763465221171,0.71,138.43,138.39,3.10159716]
[1763465221358,0.71,138.43,138.39,3.79159716]
[1763465224051,3.81159716,138.43,138.39,0.69]
[1763465224957,3.10159716,138.45,138.4,3.10159716]
[1763465225158,3.81159716,138.45,138.4,3.10159716]
[1763465225362,0.71,138.44,138.41,0.69]
[1763465225866,0.71,138.44,138.4,0.69]
[1763465226065,0.71,138.44,138.39,21.91255716]
[1763465226268,3.81159716,138.44,138.39,21.91255716]
[1763465226480,3.81159716,138.44,138.4,0.69]
[1763465226685,0.71,138.43,138.4,0.69]
[1763465227554,0.71,138.43,138.4,3.79159716]
[1763465227869,0.71,138.43,138.4,0.69]
[1763465228382,3.10159716,138.45,138.41,0.69]
[1763465228688,0.71,138.46,138.42,3.10159716]
[1763465228876,0.71,138.45,138.41,3.10159716]
[1763465229080,3.81159716,138.45,138.41,0.69]
[1763465229285,3.10159716,138.44,138.39,8.09159716]
[1763465229590,3.10159716,138.43,138.39,0.69]
[1763465229879,3.81159716,138.43,138.39,0.69]
[1763465230053,0.71,138.43,138.39,3.79159716]
[1763465230481,0.71,138.43,138.39,3.10159716]
[1763465230672,0.71,138.43,138.4,0.69]
[1763465231474,0.71,138.45,138.41,3.10159716]
[1763465231663,4.3,138.46,138.42,3.10159716]
[1763465231849,5.01,138.46,138.42,3.10159716]
[1763465232050,0.71,138.45,138.42,3.77159716]
[1763465232855,0.71,138.45,138.42,0.67]
[1763465233169,0.71,138.45,138.41,3.10159716]
[1763465233548,3.10159716,138.44,138.39,4.3]
[1763465233860,3.10159716,138.44,138.39,3.10159716]
[1763465234055,0.71,138.43,138.39,3.77159716]
[1763465235149,3.81159716,138.44,138.4,0.67]
[1763465235353,0.71,138.43,138.4,3.10159716]
[1763465235553,0.71,138.43,138.39,3.77159716]
[1763465237396,3.81159716,138.43,138.39,0.67]
[1763465237605,0.71,138.43,138.39,0.67]
[1763465237977,0.71,138.43,138.39,3.77159716]
[1763465238185,4.3,138.46,138.42,3.10159716]
[1763465238375,0.71,138.45,138.42,3.10159716]
[1763465238587,0.71,138.45,138.42,3.77159716]
[1763465239887,0.71,138.45,138.42,0.67]
[1763465240194,0.71,138.45,138.41,3.81159716]
[1763465240395,0.71,138.45,138.41,3.10159716]
[1763465240694,0.71,138.45,138.41,3.81159716]
[1763465241217,0.71,138.45,138.41,3.10159716]
[1763465241501,3.10159716,138.43,138.38,3.10159716]
[1763465241972,3.82159716,138.42,138.37,8.11159716]
[1763465242175,0.72,138.42,138.37,7.40159716]
[1763465242392,0.72,138.42,138.38,0.71]
[1763465242802,0.72,138.42,138.37,3.10159716]
[1763465243398,0.72,138.42,138.38,0.71]
[1763465243899,0.72,138.42,138.37,3.81159716]
[1763465244375,3.10159716,138.41,138.36,3.81159716]
[1763465244876,0.72,138.4,138.36,3.81159716]
[1763465245076,0.72,138.4,138.36,0.71]
[1763465248308,0.72,138.4,138.36,3.81159716]
[1763465248723,10.50882769,138.42,138.37,0.71]
[1763465248882,7.40159716,138.43,138.37,21.93255716]
[1763465249077,0.72,138.42,138.37,21.93255716]
[1763465249481,0.72,138.42,138.38,0.71]
[1763465249684,3.82159716,138.42,138.38,0.71]
[1763465249900,3.82159716,138.42,138.37,18.12096]
[1763465249901,3.10159716,138.41,138.37,18.12096]
[1763465250113,3.82159716,138.41,138.37,18.12096]
[1763465250404,0.72,138.4,138.37,18.83096]
[1763465251094,3.82159716,138.4,138.35,3.81159716]
[1763465251306,3.82159716,138.4,138.35,8.11159716]
[1763465251612,0.72,138.39,138.36,0.71]
[1763465251796,3.82159716,138.4,138.36,0.71]
[1763465251993,0.72,138.4,138.36,3.81159716]
[1763465253218,0.72,138.4,138.36,3.10159716]
[1763465253508,0.72,138.4,138.36,3.81159716]
[1763465254713,0.72,138.4,138.36,0.71]
[1763465255314,3.82159716,138.4,138.35,25.52255716]
[1763465255518,3.82159716,138.4,138.35,26.23255716]
[1763465255692,0.72,138.39,138.35,26.23255716]
[1763465256012,0.72,138.39,138.36,0.71]
[1763465258708,4.3,138.43,138.38,21.22255716]
[1763465258709,5.02,138.43,138.38,21.22255716]
[1763465258913,0.72,138.43,138.39,3.81159716]
[1763465259105,0.72,138.43,138.4,3.10159716]
[1763465259303,0.72,138.45,138.41,3.10159716]
[1763465259523,0.72,138.45,138.41,3.81159716]
[1763465259816,0.72,138.46,138.42,3.81159716]
[1763465263428,0.72,138.46,138.42,3.10159716]
[1763465264513,3.82159716,138.46,138.41,8.05159716]
[1763465264830,0.72,138.45,138.41,8.05159716]
[1763465265716,3.10159716,138.44,138.4,4.3]
[1763465266128,0.72,138.43,138.4,4.3]
[1763465266432,0.72,138.43,138.4,8.05159716]
[1763465268307,0.72,138.43,138.4,3.75159716]
[1763465268716,0.72,138.43,138.4,3.10159716]
[1763465269025,0.72,138.43,138.4,0.65]
[1763465269411,0.72,138.43,138.4,3.75159716]
[1763465269703,12.89042485,138.46,138.4,3.75159716]
[1763465269923,0.72,138.45,138.4,3.75159716]
[1763465270734,3.82159716,138.45,138.4,3.75159716]
[1763465271511,0.72,138.44,138.4,3.75159716]
[1763465272436,0.72,138.44,138.4,0.65]
[1763465272733,0.72,138.44,138.4,3.75159716]
[1763465272912,0.72,138.44,138.4,5.48981452]
[1763465273308,5.55981452,138.44,138.39,4.83981452]
[1763465273624,4.83981452,138.43,138.37,4.83981452]
[1763465273825,5.55981452,138.42,138.37,4.83981452]
[1763465274026,4.83981452,138.41,138.36,5.48981452]
[1763465274241,5.55981452,138.41,138.36,5.48981452]
[1763465274438,0.72,138.4,138.35,22.96077452]
[1763465274640,4.83981452,138.39,138.34,0.65]
[1763465274936,4.83981452,138.39,138.34,5.48981452]
[1763465275119,0.72,138.38,138.34,5.48981452]
[1763465276138,0.72,138.38,138.35,0.65]
[1763465278422,0.72,138.38,138.35,5.48981452]
[1763465278619,0.72,138.38,138.35,0.65]
[1763465279555,0.72,138.38,138.34,4.83981452]
[1763465279724,0.72,138.38,138.34,0.65]
[1763465279924,5.55981452,138.38,138.34,0.65]
[1763465280427,0.72,138.37,138.32,27.26077452]
[1763465280627,9.85981452,138.39,138.34,4.83981452]
[1763465280936,0.72,138.38,138.34,4.83981452]
[1763465281144,5.55981452,138.38,138.33,4.83981452]
[1763465281446,5.55981452,138.38,138.28,84.84780224]
[1763465281447,4.83981452,138.37,138.31,0.65]
[1763465281625,5.55981452,138.37,138.32,4.83981452]
[1763465281939,0.72,138.36,138.33,4.83981452]
[1763465282143,4.83981452,138.38,138.33,4.83981452]
[1763465282444,0.72,138.37,138.34,5.48981452]
[1763465282645,0.72,138.37,138.32,0.65]
[1763465282824,5.55981452,138.37,138.32,0.65]
[1763465283027,4.83981452,138.36,138.31,9.78981452]
[1763465283245,0.72,138.35,138.32,0.65]
[1763465283437,0.72,138.35,138.31,9.13981452]
[1763465283638,0.72,138.35,138.31,9.78981452]
[1763465283848,0.72,138.35,138.32,0.65]
[1763465284021,5.55981452,138.35,138.29,4.95]
[1763465284346,5.55981452,138.35,138.29,9.78981452]
[1763465284545,0.72,138.34,138.29,9.78981452]
[1763465285046,5.55981452,138.36,138.31,4.83981452]
[1763465285241,0.72,138.36,138.31,4.83981452]
[1763465285437,9.78882769,138.38,138.34,4.83981452]
[1763465285438,10.50882769,138.38,138.34,4.83981452]
[1763465285947,0.72,138.37,138.34,0.65]
[1763465286447,0.72,138.37,138.33,4.83981452]
[1763465286741,0.72,138.37,138.33,0.65]
[1763465286930,5.55981452,138.37,138.31,0.65]
[1763465287130,5.55981452,138.37,138.32,4.83981452]
[1763465287331,4.83981452,138.37,138.32,4.83981452]
[1763465287529,0.72,138.36,138.32,5.48981452]
[1763465287935,0.72,138.36,138.33,0.65]
[1763465288954,0.72,138.36,138.32,4.83981452]
[1763465289258,0.72,138.36,138.32,5.48981452]
[1763465289927,0.72,138.36,138.33,0.65]
[1763465291946,9.85981452,138.39,138.34,4.83981452]
[1763465292151,5.02,138.39,138.35,4.83981452]
[1763465292749,0.72,138.38,138.35,4.83981452]
[1763465293658,0.72,138.38,138.34,0.7]
[1763465293838,0.72,138.38,138.35,4.83981452]
[1763465295742,0.72,138.38,138.34,5.53981452]
[1763465302446,4.3,138.39,138.35,5.51981452]
[1763465302849,4.83981452,138.43,138.32,4.83981452]
[1763465302850,0.69,138.42,138.37,4.83981452]
[1763465303160,4.99,138.43,138.39,4.83981452]
[1763465303356,4.99,138.43,138.4,4.83981452]
[1763465303780,4.3,138.43,138.4,4.83981452]
[1763465303939,4.3,138.43,138.41,0.68]
[1763465304453,0.69,138.45,138.41,0.68]
[1763465307170,0.69,138.45,138.4,5.51981452]
[1763465307468,0.69,138.45,138.41,0.68]
[1763465307659,5.52981452,138.45,138.4,0.68]
[1763465307855,4.83981452,138.44,138.4,0.68]
[1763465308059,4.83981452,138.44,138.4,5.51981452]
[1763465308060,0.69,138.44,138.4,5.51981452]
[1763465308553,0.69,138.44,138.41,5.51981452]
[1763465308865,4.83981452,138.43,138.37,4.98]
[1763465309164,4.83981452,138.43,138.37,4.83981452]
[1763465309165,4.83981452,138.42,138.37,4.83981452]
[1763465309373,5.52981452,138.42,138.37,5.51981452]
[1763465309538,0.69,138.41,138.37,5.51981452]
[1763465309736,5.52981452,138.41,138.36,4.83981452]
[1763465310262,5.52981452,138.41,138.33,63.0]
[1763465310263,5.52981452,138.4,138.35,4.83981452]
[1763465310466,5.52981452,138.4,138.33,67.3]
[1763465310467,0.69,138.4,138.36,5.51981452]
[1763465311248,32.20978769,138.43,138.37,5.51981452]
[1763465311249,4.83981452,138.42,138.37,5.51981452]
[1763465311465,0.69,138.42,138.37,5.51981452]
[1763465311775,37.04960221,138.43,138.37,5.51981452]
[1763465311776,0.69,138.41,138.37,5.51981452]
[1763465314757,0.69,138.41,138.38,0.68]
[1763465315157,4.3,138.43,138.4,4.83981452]
[1763465315654,4.3,138.43,138.41,0.68]
[1763465315964,4.3,138.43,138.41,5.51981452]
[1763465316181,4.3,138.43,138.41,4.83981452]
[1763465316549,4.3,138.43,138.41,5.51981452]
[1763465317973,4.3,138.43,138.41,4.83981452]
[1763465318362,4.3,138.43,138.4,5.51981452]
[1763465321378,4.3,138.43,138.41,0.68]
[1763465322274,4.3,138.43,138.4,22.96077452]
[1763465322469,4.3,138.43,138.4,23.63077452]
[1763465323476,4.3,138.43,138.41,4.83981452]
[1763465324359,5.02,138.43,138.4,5.50981452]
[1763465324783,4.3,138.43,138.4,5.50981452]
[1763465326179,4.3,138.43,138.41,4.83981452]
[1763465326359,4.3,138.43,138.41,5.50981452]
[1763465326668,5.02,138.43,138.4,5.50981452]
[1763465327985,0.72,138.43,138.4,5.50981452]
[1763465330089,0.72,138.45,138.41,5.50981452]
[1763465332281,0.72,138.45,138.4,5.50981452]
[1763465332672,0.72,138.45,138.41,5.50981452]
[1763465334394,0.72,138.45,138.42,4.83981452]
[1763465334591,4.3,138.46,138.42,4.83981452]
[1763465334893,5.02,138.46,138.43,0.67]
[1763465335788,0.72,138.45,138.42,3.09684385]
[1763465336384,0.72,138.45,138.42,3.76684385]
[1763465336591,5.02,138.46,138.43,3.76684385]
[1763465336759,0.72,138.45,138.43,3.76684385]
[1763465337670,0.72,138.45,138.42,3.76684385]
[1763465339168,0.72,138.45,138.42,3.09684385]
[1763465339479,0.72,138.45,138.43,0.67]
[1763465340688,4.3,138.46,138.43,3.76684385]
[1763465341192,4.3,138.46,138.41,22.42096]
[1763465341193,5.02,138.48,138.44,3.76684385]
[1763465341579,0.72,138.47,138.44,3.76684385]
[1763465341776,3.81684385,138.47,138.41,4.3]
[1763465341996,0.72,138.46,138.42,21.88780385]
[1763465342199,0.72,138.46,138.43,3.09684385]
[1763465342496,0.72,138.46,138.43,3.76684385]
[1763465342900,0.72,138.46,138.43,3.09684385]
[1763465343072,0.72,138.46,138.42,21.88780385]
[1763465343686,0.72,138.46,138.43,0.67]
[1763465344074,0.72,138.46,138.43,3.76684385]
[1763465344396,0.72,138.47,138.43,0.67]
[1763465344595,0.72,138.47,138.44,3.76684385]
[1763465345719,3.81684385,138.47,138.42,21.88780385]
[1763465346202,0.72,138.46,138.42,21.88780385]
[1763465351005,4.3,138.48,138.43,0.67]
[1763465351006,5.02,138.48,138.43,0.67]
[1763465351304,0.72,138.47,138.43,3.76684385]
[1763465351691,0.72,138.47,138.44,3.76684385]
[1763465352494,0.72,138.47,138.44,3.09684385]
[1763465352695,0.72,138.47,138.44,0.67]
[1763465352893,0.72,138.47,138.43,3.76684385]
[1763465353092,0.72,138.47,138.43,3.09684385]
[1763465355293,3.81684385,138.47,138.42,21.88780385]
[1763465355609,3.81684385,138.47,138.43,0.67]
[1763465355812,0.69,138.46,138.43,0.67]
[1763465356111,0.69,138.46,138.43,3.76684385]
[1763465356993,0.69,138.46,138.42,18.12096]
[1763465356994,0.69,138.47,138.44,3.76684385]
[1763465357298,0.69,138.47,138.43,3.09684385]
[1763465357608,0.69,138.47,138.43,3.76684385]
[1763465358789,0.69,138.47,138.44,0.67]
[1763465359491,0.69,138.47,138.43,3.09684385]
[1763465359708,3.78684385,138.47,138.42,18.12096]
[1763465359907,0.69,138.47,138.43,3.09684385]
[1763465360098,0.72,138.46,138.43,3.09684385]
[1763465360995,0.72,138.46,138.43,3.76684385]
[1763465364298,0.72,138.46,138.42,21.88780385]
[1763465364508,0.72,138.46,138.43,0.67]
[1763465365194,0.72,138.46,138.43,3.76684385]
[1763465368292,7.39684385,138.48,138.44,3.76684385]
[1763465368293,5.02,138.48,138.44,3.76684385]
[1763465368492,5.02,138.48,138.44,0.67]
[1763465368709,0.72,138.47,138.44,3.76684385]
[1763465368919,0.72,138.47,138.42,26.18780385]
[1763465369121,3.81684385,138.47,138.42,26.18780385]
[1763465369287,3.81684385,138.47,138.39,12.3873754]
[1763465369288,3.09684385,138.43,138.38,4.3]
[1763465369497,3.09684385,138.39,138.32,0.67]
[1763465369812,0.72,138.38,138.32,0.67]
[1763465370123,6.18349826,138.42,138.32,21.88780385]
[1763465370301,12.45904743,138.42,138.33,4.97]
[1763465370631,0.72,138.41,138.33,4.97]
[1763465370796,0.72,138.41,138.37,3.09684385]
[1763465371416,4.3,138.42,138.38,3.76684385]
[1763465371920,0.72,138.41,138.35,18.12096]
[1763465372126,0.72,138.41,138.37,0.67]
[1763465372632,0.72,138.41,138.36,7.39684385]
[1763465372836,3.81684385,138.41,138.36,0.67]
[1763465373119,3.09684385,138.37,138.32,0.67]
[1763465373328,3.09684385,138.37,138.31,25.51780385]
[1763465373504,8.11684385,138.4,138.35,3.09684385]
[1763465373823,8.11684385,138.4,138.36,3.09684385]
[1763465373824,5.02,138.4,138.36,3.09684385]
[1763465374035,5.02,138.4,138.36,3.76684385]
[1763465374313,5.02,138.4,138.36,0.67]
[1763465374498,5.02,138.4,138.36,3.76684385]
[1763465375719,4.3,138.4,138.36,0.67]
[1763465375903,5.02,138.4,138.36,0.67]
[1763465376300,4.3,138.4,138.38,3.09684385]
[1763465376519,0.72,138.42,138.36,0.67]
[1763465376824,0.72,138.42,138.39,3.09684385]
[1763465380034,0.72,138.42,138.38,3.76684385]
[1763465381626,3.81684385,138.42,138.38,0.67]
[1763465382134,0.72,138.42,138.38,0.67]
[1763465382327,0.72,138.42,138.38,3.76684385]
[1763465383533,0.72,138.42,138.39,3.09684385]
[1763465383917,0.72,138.42,138.38,0.67]
[1763465384123,0.72,138.42,138.38,3.76684385]
[1763465385519,0.72,138.42,138.39,0.7]
[1763465385826,0.72,138.42,138.38,3.79684385]
[1763465386933,0.72,138.42,138.37,18.12096]
[1763465386934,4.3,138.43,138.39,3.79684385]
[1763465387138,4.3,138.43,138.41,3.09684385]
[1763465387338,3.09684385,138.46,138.41,3.09684385]
[1763465387539,0.67,138.45,138.42,3.09684385]
[1763465389427,0.67,138.45,138.41,3.79684385]
[1763465389627,0.67,138.45,138.42,3.09684385]
[1763465392126,0.67,138.45,138.41,3.09684385]
[1763465392438,0.67,138.45,138.41,3.79684385]
[1763465393325,0.67,138.45,138.42,3.09684385]
[1763465393527,0.67,138.45,138.41,0.7]
[1763465393729,0.67,138.45,138.39,18.12096]
[1763465393730,0.67,138.45,138.4,0.7]
[1763465393943,0.67,138.45,138.41,3.09684385]
[1763465394619,0.67,138.45,138.41,3.79684385]
[1763465394814,5.51016255,138.45,138.41,4.84016255]
[1763465395112,5.51016255,138.45,138.4,4.84016255]
[1763465395325,0.67,138.44,138.4,4.84016255]
[1763465395523,0.67,138.44,138.4,23.66112255]
[1763465398940,0.67,138.44,138.41,4.84016255]
[1763465399650,0.67,138.44,138.4,22.96112255]
[1763465399824,4.84016255,138.43,138.38,18.82096]
[1763465400147,4.84016255,138.42,138.38,4.84016255]
[1763465400446,0.67,138.42,138.39,5.54016255]
[1763465400953,0.67,138.42,138.38,5.54016255]
[1763465401156,4.84016255,138.41,138.36,18.82096]
[1763465401353,4.84016255,138.4,138.36,4.84016255]
[1763465401653,0.67,138.39,138.38,18.12096]
[1763465402043,0.67,138.4,138.38,18.12096]
[1763465402350,0.67,138.4,138.39,18.12096]